bitfinex/quotes_ETHUSD_20251127
["timestamp","ask_amount","ask_price","bid_price","bid_amount"]
[1764213688212,0.30502137,3052.8,3052.7,4.68029933]
[1764213688945,0.70242137,3052.8,3052.7,4.19149933]
[1764213689727,0.21,3053.3,3052.7,4.68029933]
[1764213689925,0.79408571,3053.2,3052.7,4.68029933]
[1764213690136,0.30498571,3053.1,3052.7,4.68029933]
[1764213690350,0.002,3053.3,3053.2,0.1924]
[1764213690633,0.002,3053.3,3053.2,0.4888]
[1764213691713,0.002,3053.3,3053.2,6.59465056]
[1764213692139,0.002,3053.3,3053.2,9.96249313]
[1764213692439,0.002,3053.3,3053.2,11.30551926]
[1764213692641,0.002,3053.3,3053.2,8.93822089]
[1764213693232,0.002,3053.3,3053.2,11.51351926]
[1764213695822,0.6971,3054.3,3053.9,0.9945442]
[1764213696118,0.6971,3054.3,3054.0,0.9945442]
[1764213696119,0.4891,3054.2,3054.0,0.9945442]
[1764213696529,0.3865,3054.1,3054.0,0.9945442]
[1764213696926,0.8746,3054.1,3054.0,0.9945442]
[1764213697127,0.8746,3054.1,3054.0,0.9965442]
[1764213701058,0.8746,3054.1,3054.0,0.9945442]
[1764213701422,0.72559411,3054.5,3054.0,1.4506442]
[1764213701636,0.3829,3054.1,3054.0,0.9945442]
[1764213702217,0.68747058,3054.1,3054.0,1.65818763]
[1764213702617,1.17907058,3054.1,3054.0,0.9945442]
[1764213703638,0.78607058,3054.1,3054.0,0.9945442]
[1764213703839,1.17997058,3054.1,3054.0,0.9945442]
[1764213704413,1.1798719,3054.1,3054.0,0.9945442]
[1764213705340,1.1798719,3054.1,3053.6,5.64306049]
[1764213705541,0.0039,3053.9,3053.7,0.56430605]
[1764213705742,0.0039,3053.9,3053.8,2.36729837]
[1764213705948,0.30450441,3054.1,3053.8,2.36729837]
[1764213706119,0.30450441,3054.0,3053.8,2.36729837]
[1764213706321,0.4947,3054.2,3053.8,5.64190198]
[1764213706515,0.30452867,3054.1,3053.8,5.64190198]
[1764213706722,0.30452867,3054.0,3053.8,3.31549756]
[1764213707044,0.4947,3054.2,3053.8,3.31549756]
[1764213707250,0.30453299,3054.1,3053.8,3.31549756]
[1764213707548,0.30453299,3054.1,3054.0,2.36729837]
[1764213708144,0.68743299,3054.1,3054.0,2.36729837]
[1764213708549,1.17903299,3054.1,3053.8,3.31549756]
[1764213708725,0.8745,3054.1,3053.8,3.31549756]
[1764213708917,0.30451015,3054.0,3053.8,3.31549756]
[1764213709342,0.30451015,3054.0,3053.6,0.001]
[1764213709343,4.46650263,3053.9,3053.6,0.001]
[1764213709543,0.48899928,3053.7,3053.6,0.001]
[1764213709856,0.79350943,3053.7,3053.6,0.001]
[1764213710026,1.28510943,3053.7,3053.6,0.001]
[1764213710427,5.28541945,3053.7,3053.6,0.001]
[1764213712264,1.62760426,3053.7,3053.6,0.001]
[1764213712466,0.90201015,3053.7,3053.6,0.23782984]
[1764213713254,4.66832606,3053.7,3053.6,0.001]
[1764213715254,3.96872606,3053.7,3053.6,0.001]
[1764213715430,4.66832606,3053.7,3053.6,0.001]
[1764213718129,4.76782534,3053.7,3053.6,0.001]
[1764213719465,5.49341945,3053.7,3053.6,0.001]
[1764213722458,5.39392017,3053.7,3053.6,0.9955442]
[1764213722851,5.39592017,3053.7,3053.6,0.9955442]
[1764213723166,0.51451015,3053.7,3053.6,0.4571]
[1764213723545,0.90401015,3053.7,3053.6,0.001]
[1764213723744,0.51451015,3053.7,3053.6,0.4571]
[1764213724869,4.67032606,3053.7,3053.6,0.001]
[1764213725170,4.69632017,3053.7,3053.6,0.001]
[1764213725460,4.90432017,3053.7,3053.6,0.001]
[1764213725960,5.39592017,3053.7,3053.6,0.001]
[1764213726164,1.24010426,3053.7,3053.6,0.4571]
[1764213726551,4.51482017,3053.7,3053.6,0.4571]
[1764213726867,4.90432017,3053.7,3053.6,0.001]
[1764213727242,5.39592017,3053.7,3053.6,0.001]
[1764213728752,5.49541945,3053.7,3053.6,0.001]
[1764213729150,4.79581945,3053.7,3053.6,0.001]
[1764213729357,4.90432017,3053.7,3053.6,0.001]
[1764213729767,5.36532017,3053.7,3053.6,0.001]
[1764213730475,5.46481945,3053.7,3053.6,0.001]
[1764213731446,4.69632017,3053.7,3053.6,0.001]
[1764213731654,4.90432017,3053.7,3053.6,0.001]
[1764213732372,4.51482017,3053.7,3053.6,0.4513]
[1764213732568,5.39312017,3053.7,3053.6,0.001]
[1764213733763,4.51482017,3053.7,3053.6,0.001]
[1764213734170,1.24010426,3053.7,3053.6,0.9064]
[1764213734372,1.24010426,3053.7,3053.6,1.25080449]
[1764213734663,1.24010426,3053.7,3053.6,0.9064]
[1764213735043,4.51482017,3053.7,3053.6,0.4513]
[1764213735341,1.03210426,3053.7,3053.6,0.4513]
[1764213735543,0.51451015,3053.7,3053.6,0.9064]
[1764213736144,0.30651015,3053.7,3053.6,0.9064]
[1764213736567,0.30651015,3053.7,3053.6,0.4513]
[1764213737066,4.45852606,3053.7,3053.6,0.001]
[1764213737266,3.97662606,3053.7,3053.6,0.001]
[1764213737469,0.30651015,3053.7,3053.6,0.9064]
[1764213737672,0.51451015,3053.7,3053.6,1.32464244]
[1764213737969,0.30651015,3053.7,3053.6,0.9064]
[1764213739057,0.30651015,3053.7,3053.6,0.4513]
[1764213739271,0.30651015,3053.7,3053.6,0.9064]
[1764213739881,0.30651015,3053.7,3053.6,4.18122315]
[1764213740169,0.002,3053.7,3053.6,4.18122315]
[1764213740374,0.002,3053.7,3053.6,5.18060389]
[1764213740871,0.002,3053.7,3053.6,5.58610789]
[1764213744077,0.002,3053.7,3053.6,1.90578074]
[1764213744263,0.002,3053.7,3053.6,4.18122315]
[1764213744578,0.002,3053.7,3053.6,0.9064]
[1764213744780,0.002,3053.7,3053.6,4.18122315]
[1764213746279,0.4828,3054.5,3054.2,0.9925442]
[1764213746456,0.30420356,3054.4,3054.2,0.9925442]
[1764213746867,0.3954,3054.3,3054.2,0.9925442]
[1764213747054,0.69960356,3054.3,3054.2,0.9925442]
[1764213747256,1.18150356,3054.3,3054.2,0.9925442]
[1764213747674,4.45557617,3054.3,3054.2,0.9925442]
[1764213748258,5.28066956,3054.3,3054.2,0.9925442]
[1764213750795,5.38917028,3054.3,3054.2,0.9925442]
[1764213751360,5.38917028,3054.3,3054.2,1.4428442]
[1764213751361,4.18167617,3054.3,3054.2,1.4428442]
[1764213751580,4.18167617,3054.3,3054.2,0.9925442]
[1764213752174,0.4819,3053.7,3053.5,0.001]
[1764213752367,0.4828,3054.6,3053.5,0.4561]
[1764213752569,0.92379691,3054.7,3053.5,0.4561]
[1764213752570,0.72559411,3054.4,3053.6,0.4503]
[1764213752779,0.30424743,3054.3,3053.6,0.4503]
[1764213753084,0.30424743,3054.2,3053.6,0.9054]
[1764213753261,0.30424743,3054.1,3053.6,1.57719568]
[1764213753463,0.51224743,3054.0,3053.6,1.12209568]
[1764213753785,3.57875511,3053.9,3053.6,0.4503]
[1764213753987,0.30424743,3053.8,3053.6,0.4503]
[1764213754289,0.208,3053.9,3053.7,0.4503]
[1764213754963,0.51225167,3053.9,3053.7,0.4503]
[1764213755162,0.30425167,3053.8,3053.7,0.4503]
[1764213755883,0.51225167,3053.9,3053.7,0.4503]
[1764213756189,0.30425167,3053.8,3053.7,0.4503]
[1764213756490,0.208,3054.0,3053.8,0.4503]
[1764213756690,0.208,3054.0,3053.9,0.4503]
[1764213758069,0.90769708,3054.0,3053.5,3.73098907]
[1764213758280,0.30428242,3053.9,3053.6,0.4551]
[1764213758484,0.6034,3054.0,3053.6,0.4551]
[1764213759384,0.30435715,3053.9,3053.6,0.4551]
[1764213759693,0.002,3053.8,3053.6,0.4551]
[1764213759986,0.002,3053.8,3053.6,3.72991187]
[1764213760198,0.002,3053.8,3053.7,0.495]
[1764213760771,0.4194,3053.8,3053.5,1.43922194]
[1764213760980,0.002,3053.8,3053.5,4.71415092]
[1764213761184,0.002,3053.8,3053.7,0.495]
[1764213762671,0.30657404,3053.8,3053.7,0.495]
[1764213763491,0.30657404,3053.8,3053.7,4.25221591]
[1764213763793,0.002,3053.8,3053.7,7.68549637]
[1764213764097,0.30462375,3054.1,3054.0,3.808]
[1764213764283,0.30462375,3054.1,3054.0,7.08239423]
[1764213764596,0.30462375,3054.1,3054.0,4.303]
[1764213765094,0.30462375,3054.1,3054.0,4.7855]
[1764213765874,0.30462375,3054.1,3054.0,8.05989423]
[1764213766074,0.30462375,3054.1,3054.0,9.1933427]
[1764213767087,0.30462375,3054.1,3054.0,11.7299876]
[1764213767296,0.002,3054.2,3054.0,11.7299876]
[1764213767500,0.002,3054.2,3054.1,0.9775]
[1764213767699,0.30676288,3054.2,3054.1,0.9775]
[1764213767879,0.30676288,3054.2,3054.1,2.477939]
[1764213768675,0.30676288,3054.2,3054.1,5.75222602]
[1764213769298,0.30676288,3054.2,3054.1,2.477939]
[1764213769502,0.30676288,3054.2,3054.1,0.9775]
[1764213770097,6.75553485,3054.6,3054.2,3.50123712]
[1764213770288,6.85503413,3054.6,3054.2,3.50123712]
[1764213770495,0.48,3054.3,3054.2,3.50123712]
[1764213771005,0.8781,3054.3,3054.2,3.50123712]
[1764213771372,4.15217261,3054.3,3054.2,3.50123712]
[1764213772187,4.25167189,3054.3,3054.2,3.50123712]
[1764213772877,0.09949928,3054.1,3054.0,3.50123712]
[1764213773079,0.30649928,3054.1,3054.0,3.50123712]
[1764213773278,1.18459928,3054.1,3054.0,3.50123712]
[1764213774936,4.4588863,3054.1,3054.0,3.50123712]
[1764213775208,4.35938702,3054.1,3054.0,3.50123712]
[1764213775592,3.96128702,3054.1,3054.0,3.50123712]
[1764213775790,3.75428702,3054.1,3054.0,3.50123712]
[1764213775981,4.35938702,3054.1,3054.0,3.50123712]
[1764213778007,4.35938702,3054.1,3054.0,3.50223712]
[1764213782094,4.66390706,3054.1,3054.0,0.001]
[1764213783392,4.76340634,3054.1,3054.0,0.001]
[1764213783596,5.48900045,3054.1,3054.0,0.001]
[1764213784819,5.48900045,3054.1,3053.6,0.001]
[1764213784820,0.09949928,3053.8,3053.6,0.001]
[1764213785000,0.71062004,3053.7,3053.6,0.001]
[1764213785201,1.57962004,3053.7,3053.6,0.001]
[1764213786217,4.95383523,3053.7,3053.6,0.001]
[1764213786426,8.04603267,3053.7,3053.6,0.001]
[1764213786926,0.72559411,3053.6,3053.5,0.001]
[1764213787128,1.99961343,3053.6,3053.5,0.001]
[1764213787495,2.40511743,3053.6,3053.5,0.001]
[1764213788219,5.67994058,3053.6,3053.5,0.001]
[1764213790930,5.37542054,3053.6,3053.5,0.001]
[1764213791130,5.67887985,3053.6,3053.5,0.001]
[1764213791306,5.81009945,3053.6,3053.5,0.001]
[1764213793930,8.17670278,3053.6,3053.5,0.001]
[1764213794098,8.27670278,3053.6,3053.5,0.001]
[1764213794502,8.38470278,3053.6,3053.5,0.001]
[1764213795312,8.17670278,3053.6,3053.5,0.001]
[1764213795512,8.38470278,3053.6,3053.5,0.001]
[1764213796827,10.75130611,3053.6,3053.5,0.001]
[1764213797031,0.60500328,3053.4,3053.3,0.001]
[1764213797208,1.23059739,3053.3,3053.2,0.001]
[1764213797407,2.4040567,3053.3,3053.2,0.001]
[1764213797607,2.53529955,3053.3,3053.2,0.001]
[1764213798028,3.02664605,3053.3,3053.2,0.001]
[1764213798227,2.53529955,3053.3,3053.2,0.001]
[1764213799334,5.81044447,3053.3,3053.2,0.001]
[1764213799734,0.50500328,3053.1,3053.0,0.001]
[1764213799909,4.20866003,3053.1,3053.0,0.001]
[1764213800235,5.07746003,3053.1,3053.0,0.001]
[1764213803938,10.85066955,3053.1,3053.0,0.001]
[1764213805333,10.85066955,3053.1,3050.8,0.6718]
[1764213805334,0.50500328,3052.2,3050.8,0.6718]
[1764213805513,4.66036003,3052.2,3050.8,0.1887]
[1764213805711,8.3568853,3052.2,3050.8,0.1887]
[1764213805912,8.48818415,3052.2,3050.8,0.1887]
[1764213806833,8.48818415,3052.2,3051.1,0.166]
[1764213806834,8.18018415,3052.2,3051.1,0.166]
[1764213807009,0.50500328,3051.8,3051.1,0.166]
[1764213807213,4.49226003,3051.8,3051.1,0.166]
[1764213807412,5.19446003,3051.8,3051.1,0.166]
[1764213807613,5.325755,3051.8,3051.1,0.166]
[1764213807814,8.6025097,3051.8,3051.1,0.166]
[1764213811815,8.6025097,3051.8,3050.9,0.4831]
[1764213812518,6.23590637,3051.8,3051.1,0.6491]
[1764213813222,8.6025097,3051.8,3051.1,0.6491]
[1764213814235,1.13109811,3051.7,3051.1,0.6491]
[1764213814555,1.44566259,3051.6,3051.2,3.50223712]
[1764213814709,0.09949928,3051.3,3051.2,3.50223712]
[1764213814910,0.09949928,3051.3,3051.2,3.98533712]
[1764213814911,4.10238503,3051.3,3051.2,3.98533712]
[1764213815217,4.40584434,3051.3,3051.2,4.47933712]
[1764213816238,4.40584434,3051.3,3051.2,3.99623712]
[1764213816445,5.32569084,3051.3,3051.2,3.50223712]
[1764213816746,5.32854434,3051.3,3051.2,3.50223712]
[1764213816941,5.32854434,3051.3,3051.2,3.18231295]
[1764213817147,0.09949928,3051.1,3051.0,0.001]
[1764213817344,0.61095859,3051.1,3051.0,0.001]
[1764213817527,0.61095859,3051.1,3051.0,0.495]
[1764213818947,3.88846506,3051.1,3051.0,0.495]
[1764213819562,4.31696506,3051.1,3051.0,0.001]
[1764213819766,5.94226317,3051.1,3051.0,0.001]
[1764213821255,0.09949928,3050.7,3050.5,0.6507]
[1764213821454,0.208,3050.6,3050.5,0.6507]
[1764213821752,0.61095859,3050.6,3050.5,0.6507]
[1764213822050,0.61095859,3050.6,3050.5,1.105]
[1764213823323,4.61459636,3050.6,3050.5,1.105]
[1764213824143,4.51509708,3050.6,3050.5,1.105]
[1764213825249,4.30709708,3050.6,3050.5,1.105]
[1764213825433,1.23705342,3050.6,3050.5,1.105]
[1764213825633,4.51509708,3050.6,3050.5,1.105]
[1764213830723,1.02905342,3050.6,3050.5,1.105]
[1764213831030,4.51509708,3050.6,3050.5,1.105]
[1764213832734,4.51509708,3050.6,3050.5,1.106]
[1764213834152,4.51509708,3050.6,3050.5,0.89271562]
[1764213834932,1.02905342,3050.6,3050.5,0.89271562]
[1764213835131,1.02905342,3050.6,3050.5,0.57278902]
[1764213835132,1.23705342,3050.6,3050.5,0.57278902]
[1764213835531,0.30345931,3050.6,3050.5,0.57278902]
[1764213835732,0.51145931,3050.6,3050.5,1.19909955]
[1764213836240,3.78950297,3050.6,3050.5,0.57278902]
[1764213836858,3.78950297,3050.6,3050.5,0.4553]
[1764213837365,4.37470225,3050.6,3050.5,0.001]
[1764213837541,5.10029636,3050.6,3050.5,0.001]
[1764213840575,5.56419636,3050.6,3050.5,0.001]
[1764213841762,4.40659636,3050.6,3050.5,0.3848]
[1764213841959,0.30345931,3050.6,3050.5,4.36306374]
[1764213842147,0.002,3051.3,3050.5,4.49102202]
[1764213842336,0.30416712,3051.2,3050.8,2.54162673]
[1764213842538,0.30416712,3051.1,3050.9,0.63796267]
[1764213842863,0.002,3051.3,3051.2,0.3838]
[1764213843033,0.51404439,3051.3,3051.2,0.3838]
[1764213843239,0.30604439,3051.3,3051.2,0.7676]
[1764213845934,0.30557795,3051.3,3051.2,0.7676]
[1764213846341,0.002,3051.3,3051.2,0.7676]
[1764213847077,0.002,3051.3,3051.2,0.3838]
[1764213847247,0.30544291,3051.3,3051.2,3.18231295]
[1764213847448,1.98063702,3051.3,3050.7,3.18231295]
[1764213847649,0.09949928,3051.0,3050.7,3.18231295]
[1764213847853,0.208,3050.9,3050.7,3.18231295]
[1764213848367,0.208,3050.9,3050.8,0.3838]
[1764213848864,0.51144291,3050.9,3050.8,0.3838]
[1764213849864,0.30344291,3050.9,3050.8,0.3838]
[1764213850067,3.58501769,3051.1,3050.7,3.18231295]
[1764213850267,1.02903702,3051.0,3050.7,3.18231295]
[1764213850566,3.27782876,3050.8,3050.7,3.18231295]
[1764213850775,3.58127167,3050.8,3050.7,3.18231295]
[1764213850978,3.58127167,3050.8,3050.7,3.56611295]
[1764213851147,0.30344291,3050.8,3050.7,3.56611295]
[1764213851545,3.58116906,3050.9,3050.7,3.56611295]
[1764213851742,0.93359411,3051.1,3050.7,3.18231295]
[1764213851743,0.51144291,3050.8,3050.7,3.18231295]
[1764213852147,0.51144291,3050.8,3050.7,3.56611295]
[1764213852364,0.208,3050.8,3050.7,3.56611295]
[1764213852562,0.208,3050.8,3050.7,0.3838]
[1764213852563,3.48582876,3050.8,3050.7,0.3838]
[1764213852762,3.78927167,3050.8,3050.7,0.3838]
[1764213853147,3.78927167,3050.8,3050.7,3.18231295]
[1764213853348,3.78927167,3050.8,3050.7,3.56611295]
[1764213853557,0.51144291,3050.8,3050.7,3.56611295]
[1764213854252,4.00320873,3051.0,3050.7,3.56611295]
[1764213854253,0.208,3051.0,3050.7,4.34500424]
[1764213854451,0.208,3051.0,3050.9,0.3838]
[1764213854452,0.51131621,3051.0,3050.9,0.3838]
[1764213854847,0.208,3051.0,3050.9,0.7676]
[1764213855055,0.208,3051.0,3050.9,1.20210042]
[1764213855288,0.30336401,3051.2,3050.9,1.20210042]
[1764213855572,0.30336401,3051.2,3051.1,2.54162673]
[1764213855792,0.002,3051.3,3051.1,3.30922673]
[1764213855951,0.002,3051.3,3051.2,0.7676]
[1764213856158,0.002,3051.3,3051.2,1.09852267]
[1764213856854,0.002,3051.3,3051.2,7.55823467]
[1764213860755,0.002,3051.3,3051.2,3.89703562]
[1764213860955,0.002,3051.3,3051.2,3.94991295]
[1764213862389,0.002,3051.3,3051.2,3.56611295]
[1764213862596,0.002,3051.3,3051.2,3.94991295]
[1764213868085,0.002,3051.3,3051.2,3.56611295]
[1764213870093,0.002,3051.3,3051.2,7.227312]
[1764213870286,0.002,3051.3,3051.2,8.6263533]
[1764213873900,0.002,3051.7,3051.4,3.18031295]
[1764213874201,0.002,3051.7,3051.6,0.3838]
[1764213874805,0.002,3051.7,3051.6,4.04456945]
[1764213877803,0.002,3051.7,3051.6,8.88303365]
[1764213877977,0.002,3051.7,3051.6,10.43787668]
[1764213882779,0.30332487,3052.3,3052.0,3.17631295]
[1764213882985,0.30332487,3052.3,3052.1,3.17631295]
[1764213883185,0.75382487,3052.3,3052.1,3.17631295]
[1764213883397,0.4612,3052.2,3052.1,3.17631295]
[1764213883602,0.9117,3052.2,3052.1,3.17631295]
[1764213883902,1.21526736,3052.2,3052.1,3.17631295]
[1764213888310,0.76476736,3052.2,3052.1,3.17631295]
[1764213888511,0.30356736,3052.2,3052.1,3.49394424]
[1764213888816,0.30356736,3052.3,3052.1,3.49394424]
[1764213889016,0.76476736,3052.2,3052.1,3.49394424]
[1764213890418,0.30356736,3052.2,3052.1,3.49394424]
[1764213890616,0.30356736,3052.3,3052.1,3.49394424]
[1764213890790,0.76476736,3052.2,3052.1,3.49394424]
[1764213891190,1.21526736,3052.2,3052.1,3.49394424]
[1764213892320,1.21526736,3052.2,3052.1,3.17631295]
[1764213900895,0.76476736,3052.2,3052.1,3.17631295]
[1764213901097,0.76676736,3052.2,3052.1,3.17631295]
[1764213902323,0.97476736,3052.2,3052.1,3.17631295]
[1764213902542,0.76676736,3052.2,3052.1,3.17631295]
[1764213902722,0.51356736,3052.2,3052.1,3.17631295]
[1764213903421,1.42526736,3052.2,3052.1,3.17631295]
[1764213905599,0.97476736,3052.2,3052.1,3.17631295]
[1764213906028,0.97562746,3052.2,3052.1,3.17631295]
[1764213907024,0.002,3052.4,3052.2,2.86988549]
[1764213907213,0.002,3052.4,3052.3,2.75315013]
[1764213907531,0.002,3052.4,3052.3,3.13695013]
[1764213907724,0.002,3052.4,3052.2,2.86988549]
[1764213907725,0.4792,3052.4,3052.2,2.86988549]
[1764213907926,1.18809411,3052.3,3052.0,0.001]
[1764213908099,1.28759339,3052.1,3052.0,0.001]
[1764213908525,1.74429339,3052.1,3052.0,0.001]
[1764213908725,1.64479411,3052.1,3052.0,0.001]
[1764213909027,1.85279411,3052.1,3052.0,0.001]
[1764213909821,0.72559411,3052.2,3052.0,0.001]
[1764213909996,0.6603,3052.1,3052.0,0.001]
[1764213910404,0.4523,3052.1,3052.0,0.001]
[1764213910601,0.9474,3052.1,3052.0,0.001]
[1764213910822,0.93359411,3052.3,3052.0,0.001]
[1764213911324,3.27813126,3052.4,3052.0,0.001]
[1764213911325,3.27813126,3052.4,3052.2,0.3838]
[1764213911501,0.208,3052.3,3052.2,0.3838]
[1764213912632,0.208,3052.3,3052.0,0.001]
[1764213912633,3.93651793,3052.3,3052.0,0.001]
[1764213913321,0.6603,3052.3,3052.0,0.001]
[1764213913505,0.6603,3052.3,3052.0,0.32877378]
[1764213914015,0.208,3052.3,3052.0,0.001]
[1764213914540,0.002,3052.4,3052.0,0.001]
[1764213914700,0.208,3052.3,3052.0,0.001]
[1764213915219,0.4523,3052.1,3052.0,0.001]
[1764213915421,0.002,3052.4,3052.0,0.001]
[1764213915608,0.208,3052.2,3052.0,0.62183501]
[1764213916003,0.208,3052.2,3052.1,0.3838]
[1764213918506,0.208,3052.2,3052.1,3.25368549]
[1764213919033,0.51436853,3052.2,3052.1,3.25368549]
[1764213921309,0.96666853,3052.2,3052.1,2.86988549]
[1764213922031,0.51436853,3052.2,3052.1,2.86988549]
[1764213922907,0.96666853,3052.2,3052.1,2.86988549]
[1764213923118,4.7380938,3052.2,3052.1,2.86988549]
[1764213923831,4.73820825,3052.2,3052.1,2.86988549]
[1764213924210,4.24310825,3052.2,3052.1,2.86988549]
[1764213924922,4.73820825,3052.2,3052.1,2.86988549]
[1764213925821,4.83770753,3052.2,3052.1,2.86988549]
[1764213926140,4.73820825,3052.2,3052.1,2.86988549]
[1764213927018,7.93265177,3052.2,3052.1,2.86988549]
[1764213927224,1.13109811,3052.1,3052.0,0.001]
[1764213927424,2.48248037,3052.1,3052.0,0.001]
[1764213927628,2.48248037,3052.1,3051.7,0.001]
[1764213927948,0.6494,3051.8,3051.7,0.001]
[1764213928135,5.16423179,3051.8,3051.7,0.001]
[1764213928313,5.65933179,3051.8,3051.7,0.001]
[1764213929578,8.1281812,3051.8,3051.7,0.001]
[1764213929842,1.23059739,3051.7,3051.6,0.001]
[1764213930019,2.48248037,3051.7,3051.6,0.001]
[1764213930222,5.75934244,3051.7,3051.6,0.001]
[1764213935348,5.96734244,3051.7,3051.6,0.001]
[1764213939852,5.75934244,3051.7,3051.6,0.001]
[1764213940067,5.96734244,3051.7,3051.6,0.001]
[1764213940243,6.0986456,3051.7,3051.6,0.001]
[1764213940434,5.8906456,3051.7,3051.6,0.001]
[1764213940632,6.0986456,3051.7,3051.6,0.001]
[1764213945082,3.59994752,3051.6,3051.5,0.001]
[1764213945253,4.8196305,3051.6,3051.5,0.001]
[1764213945759,4.95094315,3051.6,3051.5,0.001]
[1764213946338,5.05094315,3051.6,3051.5,0.001]
[1764213949339,8.3279126,3051.6,3051.5,0.001]
[1764213949544,1.13109811,3051.5,3051.4,0.001]
[1764213949859,2.45028037,3051.5,3051.4,0.001]
[1764213950167,2.58159948,3051.5,3051.4,0.001]
[1764213951163,8.40094961,3051.5,3051.4,0.001]
[1764213951368,11.67802645,3051.5,3051.4,0.001]
[1764213951573,11.67802645,3051.5,3050.6,0.001]
[1764213951574,0.405504,3050.9,3050.6,0.001]
[1764213951774,6.46159765,3050.7,3050.6,0.001]
[1764213951948,4.6047305,3050.7,3050.6,0.001]
[1764213952143,5.19677333,3050.7,3050.6,0.001]
[1764213953870,8.47470954,3050.7,3050.6,0.001]
[1764213957059,14.39405967,3050.7,3050.6,0.001]
[1764213957377,14.39405967,3050.7,3050.1,0.001]
[1764213957378,1.33059739,3050.6,3050.1,0.001]
[1764213957590,2.55028037,3050.6,3050.1,0.001]
[1764213957760,6.87842106,3050.2,3050.1,0.001]
[1764213957952,7.84540404,3050.2,3050.1,0.001]
[1764213958147,8.30610404,3050.2,3050.1,0.001]
[1764213958352,8.43746671,3050.2,3050.1,0.001]
[1764213958848,6.06811658,3050.2,3050.1,0.001]
[1764213959050,8.43746671,3050.2,3050.1,0.001]
[1764213959850,11.71594025,3050.2,3049.8,0.001]
[1764213960053,0.09949928,3049.9,3049.8,0.001]
[1764213960392,1.98958037,3049.9,3049.8,0.001]
[1764213960577,0.89728298,3049.9,3049.8,0.3858]
[1764213960879,0.51248298,3049.9,3049.8,0.7706]
[1764213961478,0.30448298,3049.9,3049.8,0.7706]
[1764213961681,3.27839238,3050.3,3049.8,3.45394514]
[1764213961852,0.5113016,3050.2,3050.1,2.36935013]
[1764213962059,0.3033016,3050.2,3050.1,3.23185013]
[1764213962258,0.208,3050.5,3050.1,3.23185013]
[1764213962464,0.30334322,3051.2,3050.4,0.3848]
[1764213962669,0.51134322,3051.1,3050.4,2.53985183]
[1764213962859,0.51134322,3051.1,3050.5,0.3848]
[1764213963070,0.51134322,3051.1,3051.0,0.481]
[1764213963258,0.208,3051.1,3051.0,0.481]
[1764213963581,0.51134322,3051.1,3051.0,0.8658]
[1764213964372,0.208,3051.1,3051.0,0.8658]
[1764213965385,3.27737306,3051.3,3051.0,0.8658]
[1764213965386,3.27895543,3051.7,3051.0,3.40565183]
[1764213965598,1.02877906,3051.6,3051.1,1.05312814]
[1764213965897,0.30318495,3051.5,3051.1,0.3848]
[1764213966066,0.30318495,3051.5,3051.2,0.3848]
[1764213966256,4.21056811,3051.6,3051.4,0.3848]
[1764213966487,0.3032049,3051.5,3051.0,2.63605183]
[1764213967084,0.3032049,3051.5,3051.4,0.3848]
[1764213967485,4.21056811,3051.6,3051.4,0.7696]
[1764213967684,0.30299156,3051.5,3051.0,0.0962]
[1764213967982,0.30299156,3051.5,3051.2,0.3848]
[1764213968168,0.93359411,3051.6,3051.2,0.3848]
[1764213968373,0.30297949,3051.5,3051.2,0.3848]
[1764213968765,0.30297949,3051.5,3051.4,0.3848]
[1764213969678,0.40247877,3051.5,3051.4,0.3848]
[1764213970288,4.40514972,3051.5,3051.4,0.3848]
[1764213970863,4.21067095,3051.5,3051.4,0.3848]
[1764213972262,4.21067095,3051.5,3051.0,0.0962]
[1764213972263,0.09949928,3051.4,3051.0,0.0962]
[1764213972471,0.09949928,3051.4,3051.0,0.481]
[1764213972791,1.12775667,3051.4,3051.0,0.481]
[1764213973087,0.302643,3051.3,3051.0,0.0962]
[1764213973969,0.302643,3051.3,3051.2,0.3848]
[1764213974290,3.57993464,3051.3,3051.2,0.3848]
[1764213975186,7.34622628,3051.3,3051.0,0.0962]
[1764213975396,7.34622628,3051.3,3050.5,0.3848]
[1764213975397,0.09949928,3051.1,3050.5,0.3848]
[1764213975564,0.208,3051.0,3050.5,0.3848]
[1764213975761,0.208,3051.0,3050.6,2.86988549]
[1764213975961,0.208,3051.0,3050.7,2.86988549]
[1764213976474,0.489,3050.8,3050.3,3.81]
[1764213976793,0.09949928,3050.8,3050.2,4.1948]
[1764213977288,0.09949928,3050.8,3050.7,0.3848]
[1764213977503,3.27772132,3050.9,3050.7,0.3848]
[1764213977788,4.00331543,3050.9,3050.8,0.3848]
[1764213977994,0.09949928,3050.6,3050.2,3.81]
[1764213978363,3.27804366,3050.6,3050.5,0.3848]
[1764213978564,3.27804366,3050.6,3050.1,0.0929]
[1764213978565,6.76408732,3050.6,3050.1,0.0929]
[1764213978768,0.09949928,3050.4,3050.1,0.0929]
[1764213979391,0.59519928,3050.4,3050.0,0.001]
[1764213979591,0.09949928,3050.1,3050.0,0.001]
[1764213979805,0.697,3050.1,3050.0,0.001]
[1764213980004,1.59460012,3050.1,3050.0,0.001]
[1764213980502,5.59877526,3050.1,3050.0,0.001]
[1764213980700,9.36041242,3050.1,3050.0,0.001]
[1764213981084,6.13565272,3050.1,3050.0,0.001]
[1764213983504,4.84345344,3050.1,3050.0,0.001]
[1764213983681,5.10307526,3050.1,3050.0,0.001]
[1764213983881,3.88848115,3050.1,3050.0,0.3858]
[1764213984306,4.61407526,3050.1,3050.0,0.3858]
[1764213984490,4.61407526,3050.1,3050.0,0.001]
[1764213984685,3.88848115,3050.1,3050.0,0.3858]
[1764213984878,3.78898187,3050.1,3050.0,0.3858]
[1764213985279,4.51457598,3050.1,3050.0,0.3858]
[1764213985592,4.21217514,3050.1,3050.0,0.3858]
[1764213986408,4.21217514,3050.1,3050.0,0.7706]
[1764213987277,4.00417514,3050.1,3050.0,0.7706]
[1764213987474,4.21217514,3050.1,3050.0,0.7706]
[1764213988489,3.48658103,3050.1,3050.0,0.7706]
[1764213988898,0.208,3050.1,3050.0,0.7706]